bitfinex/quotes_BTCUSD_20251208
["timestamp","ask_amount","ask_price","bid_price","bid_amount"]
[1765209500013,0.13471599,90145.0,90144.0,0.2258001]
[1765209500209,0.14501763,90145.0,90144.0,0.00393287]
[1765209500410,0.05334164,90145.0,90144.0,0.2258001]
[1765209500616,0.0178,90154.0,90152.0,0.01109237]
[1765209500854,0.0178,90154.0,90153.0,0.01109225]
[1765209501060,0.0178,90154.0,90152.0,0.23455225]
[1765209501270,0.0178,90154.0,90153.0,0.22184508]
[1765209501828,0.0198,90154.0,90153.0,0.22184508]
[1765209502026,0.0178,90154.0,90153.0,0.22184508]
[1765209502265,0.011092,90155.0,90152.0,0.01270524]
[1765209502611,0.001,90154.0,90153.0,0.001]
[1765209502880,0.02139375,90156.0,90153.0,0.001]
[1765209503093,0.22184021,90155.0,90153.0,0.001]
[1765209503248,0.01030187,90154.0,90153.0,0.001]
[1765209503469,0.01030187,90156.0,90154.0,0.22184262]
[1765209503655,0.04393206,90157.0,90154.0,0.23293475]
[1765209503843,0.26576744,90157.0,90154.0,0.23293475]
[1765209504044,0.02141394,90156.0,90153.0,0.23393268]
[1765209504265,0.26488262,90154.0,90153.0,0.001]
[1765209504518,0.22186288,90146.0,90144.0,0.00393287]
[1765209504656,0.03328861,90150.0,90146.0,0.01109311]
[1765209504863,0.03328861,90150.0,90146.0,0.23295517]
[1765209505067,0.01109299,90147.0,90144.0,0.23689304]
[1765209505271,0.22186252,90146.0,90144.0,0.01502623]
[1765209505487,0.2551411,90150.0,90147.0,0.22185916]
[1765209505693,0.01109274,90149.0,90146.0,0.002]
[1765209505890,0.22185985,90147.0,90146.0,0.002]
[1765209506057,0.01109286,90148.0,90146.0,0.22186231]
[1765209506260,0.01109286,90148.0,90146.0,0.22186197]
[1765209506508,0.01109274,90149.0,90146.0,0.23295508]
[1765209506710,0.23294992,90149.0,90146.0,0.23295508]
[1765209507033,0.22185869,90148.0,90146.0,0.22186231]
[1765209507156,0.23294775,90149.0,90145.0,0.23295787]
[1765209507359,0.22186053,90147.0,90145.0,0.01109323]
[1765209507786,0.23294745,90150.0,90146.0,0.01109311]
[1765209508081,0.23294745,90150.0,90147.0,0.22185765]
[1765209508274,0.02219599,90152.0,90150.0,0.01109262]
[1765209508645,0.02219599,90152.0,90146.0,0.01109311]
[1765209508933,0.03361,90157.0,90145.0,0.002]
[1765209508934,0.2440583,90146.0,90145.0,0.002]
[1765209509127,0.2440583,90146.0,90144.0,0.00393287]
[1765209509128,0.24406076,90145.0,90144.0,0.00393287]
[1765209509282,0.13471599,90145.0,90144.0,0.00393287]
[1765209509504,0.35658076,90145.0,90144.0,0.00393287]
[1765209509709,0.3669108,90145.0,90144.0,0.00393287]
[1765209510107,0.79839008,90145.0,90144.0,0.00393287]
[1765209510307,0.77619409,90145.0,90144.0,0.00393287]
[1765209510508,0.79839008,90145.0,90144.0,0.00393287]
[1765209510943,0.79839008,90145.0,90144.0,0.00493287]
[1765209510944,0.6899108,90145.0,90144.0,0.00493287]
[1765209511377,0.6899108,90145.0,90144.0,0.00593287]
[1765209515289,0.75243379,90145.0,90144.0,0.00593287]
[1765209516182,0.75243379,90145.0,90144.0,0.00493287]
[1765209516608,0.75243379,90145.0,90144.0,0.00393287]
[1765209517010,0.86291307,90145.0,90144.0,0.00393287]
[1765209517213,1.66042907,90145.0,90144.0,2.87e-06]
[1765209517436,1.62115107,90145.0,90144.0,2.87e-06]
[1765209517633,1.62515107,90145.0,90144.0,2.87e-06]
[1765209518447,0.56709522,90131.0,90130.0,0.0004]
[1765209518614,0.70391831,90131.0,90130.0,0.0004]
[1765209518813,0.72773526,90131.0,90130.0,0.0004]
[1765209520595,0.72873526,90131.0,90130.0,0.0004]
[1765209521392,0.72773526,90131.0,90130.0,0.0004]
[1765209521596,0.73073526,90131.0,90130.0,0.0004]
[1765209521793,0.69073927,90131.0,90130.0,0.0004]
[1765209522017,0.70553927,90131.0,90130.0,0.0004]
[1765209522368,0.72773526,90131.0,90130.0,0.0024]
[1765209522798,0.72873526,90131.0,90130.0,0.0024]
[1765209523329,0.72773526,90131.0,90130.0,0.0024]
[1765209523542,0.72773526,90131.0,90130.0,0.0034]
[1765209523975,0.72773526,90131.0,90130.0,0.00381876]
[1765209524419,0.72773526,90131.0,90130.0,0.00281876]
[1765209524577,0.72773526,90131.0,90130.0,0.00081876]
[1765209524778,0.72873526,90131.0,90130.0,0.00081876]
[1765209525749,0.56711984,90121.0,90120.0,0.0004]
[1765209525871,0.71854228,90121.0,90120.0,0.0004]
[1765209526078,0.70555988,90121.0,90120.0,0.0004]
[1765209526524,0.70555988,90121.0,90120.0,0.00069917]
[1765209527144,0.70655988,90121.0,90120.0,0.00069917]
[1765209528203,1.37357987,90121.0,90120.0,0.00069917]
[1765209528407,0.56714447,90111.0,90087.0,0.23310601]
[1765209528552,0.751348,90111.0,90090.0,0.01150001]
[1765209528754,0.73836044,90111.0,90094.0,0.01109951]
[1765209528966,0.73836044,90111.0,90090.0,0.0004]
[1765209529602,0.73836044,90111.0,90110.0,0.0014]
[1765209529766,0.72803447,90111.0,90110.0,0.0014]
[1765209531004,0.72803447,90111.0,90110.0,0.0034]
[1765209531679,0.83651375,90111.0,90110.0,0.0034]
[1765209531995,0.72803447,90111.0,90110.0,0.0034]
[1765209534023,0.72803447,90111.0,90110.0,0.00369922]
[1765209536429,0.73835834,90111.0,90110.0,0.00369922]
[1765209537993,0.80088133,90111.0,90110.0,0.00369922]
[1765209538596,1.44627233,90111.0,90110.0,0.00369922]
[1765209538817,0.22199775,90091.0,90090.0,0.0004]
[1765209539041,0.32978374,90091.0,90090.0,0.0004]
[1765209539259,0.39702374,90091.0,90090.0,0.0009986]
[1765209540041,0.17502599,90091.0,90090.0,0.0029986]
[1765209540265,0.06724,90101.0,90097.0,0.01109914]
[1765209540461,0.0178,90101.0,90098.0,0.01109902]
[1765209540928,0.0178,90101.0,90097.0,0.01271201]
[1765209541175,0.01109927,90096.0,90089.0,0.01110013]
[1765209541358,0.22198516,90097.0,90094.0,0.22198809]
[1765209541622,0.01109939,90095.0,90092.0,0.01109976]
[1765209541830,0.23308083,90098.0,90093.0,0.01109964]
[1765209542207,0.06724,90097.0,90096.0,0.23308269]
[1765209542359,0.06724,90097.0,90094.0,0.01209951]
[1765209542360,0.30032211,90097.0,90094.0,0.01209951]
[1765209542701,0.06724,90097.0,90094.0,0.01209951]
[1765209542934,0.23307804,90099.0,90096.0,0.22198543]
[1765209543069,0.01109877,90100.0,90097.0,0.23308002]
[1765209543286,0.22197575,90100.0,90097.0,0.23308002]
[1765209543457,0.25087408,90101.0,90098.0,0.22197971]
[1765209543458,0.06724,90099.0,90098.0,0.22197971]
[1765209543660,0.01109927,90096.0,90092.0,0.23309289]
[1765209543903,0.04357,90094.0,90092.0,0.23309289]
[1765209544258,0.41558434,90094.0,90090.0,0.0004]
[1765209544459,0.24419374,90091.0,90090.0,0.0004]
[1765209544832,0.35500374,90091.0,90090.0,0.0004]
[1765209545232,0.07833877,90100.0,90090.0,0.0004]
[1765209545405,0.0178,90099.0,90093.0,0.2219928]
[1765209545585,0.0178,90099.0,90094.0,0.02569657]
[1765209545792,0.0178,90099.0,90090.0,0.01311288]
[1765209545793,0.26556775,90091.0,90090.0,0.00201287]
[1765209545991,0.28776374,90091.0,90090.0,0.0004]
[1765209546174,0.35500374,90091.0,90090.0,0.0009986]
[1765209547247,0.35600374,90091.0,90090.0,0.0009986]
[1765209547654,0.11181,90091.0,90090.0,0.02552007]
[1765209547878,0.0188,90091.0,90090.0,0.22561169]
[1765209548420,0.0188,90091.0,90090.0,0.00361147]
[1765209548828,0.0188,90091.0,90090.0,0.22561169]
[1765209549215,0.35160775,90091.0,90090.0,0.0019986]
[1765209549364,0.37380374,90091.0,90090.0,0.0019986]
[1765209552612,0.72824274,90091.0,90090.0,0.0019986]
[1765209552815,0.63597184,90091.0,90090.0,0.0019986]
[1765209553416,0.63497184,90091.0,90090.0,0.0019986]
[1765209554014,0.63797184,90091.0,90090.0,0.0009986]
[1765209554428,1.07045112,90091.0,90090.0,0.0009986]
[1765209554634,1.13297411,90091.0,90090.0,0.0009986]
[1765209554823,1.02449483,90091.0,90090.0,0.0009986]
[1765209555299,1.02450094,90091.0,90090.0,0.0009986]
[1765209555517,0.22204705,90071.0,90070.0,0.0004]
[1765209555661,0.22204705,90071.0,90070.0,0.01150247]
[1765209555662,0.0178,90071.0,90070.0,0.01150247]
[1765209555873,0.0178,90071.0,90070.0,0.0004]
[1765209556086,0.0178,90071.0,90070.0,0.22244951]
[1765209556239,0.0178,90071.0,90070.0,0.0004]
[1765209556445,0.0178,90071.0,90070.0,0.22244951]
[1765209556848,0.0178,90071.0,90070.0,0.22444951]
[1765209557047,0.23984705,90071.0,90070.0,0.0024]
[1765209557254,0.34500705,90071.0,90070.0,0.0024]
[1765209557680,0.36720304,90071.0,90070.0,0.0024]
[1765209557877,0.36720304,90071.0,90070.0,0.0044]
[1765209558322,0.34500705,90071.0,90070.0,0.0044]
[1765209558499,0.36720304,90071.0,90070.0,0.0044]
[1765209558891,0.37756999,90071.0,90070.0,0.0044]
[1765209559082,0.36720304,90071.0,90070.0,0.0044]
[1765209559283,0.36720304,90071.0,90070.0,0.0024]
[1765209559702,0.36720304,90071.0,90070.0,0.0004]
[1765209560038,0.3775661,90071.0,90070.0,0.0024]
[1765209560576,0.37756244,90071.0,90070.0,0.0024]
[1765209560725,0.37756167,90071.0,90070.0,0.0034]
[1765209561092,0.37756167,90071.0,90070.0,0.00399881]
[1765209561414,0.37755895,90071.0,90070.0,0.00399881]
[1765209561801,0.36720304,90071.0,90070.0,0.00399881]
[1765209563263,0.35534611,90071.0,90070.0,0.00399881]
[1765209563466,0.34500705,90071.0,90070.0,0.00399881]
[1765209563671,0.35534431,90071.0,90070.0,0.00399881]
[1765209564368,0.3775403,90071.0,90070.0,0.00299881]
[1765209564673,0.3785403,90071.0,90070.0,0.00099881]
[1765209564846,0.3805403,90071.0,90070.0,0.00099881]
[1765209565220,0.7035403,90071.0,90070.0,0.00099881]
[1765209566146,0.7015403,90071.0,90070.0,0.00099881]
[1765209566349,0.68434431,90071.0,90070.0,0.00099881]
[1765209566555,0.7055403,90071.0,90070.0,0.00099881]
[1765209567271,0.7075403,90071.0,90070.0,0.00099881]
[1765209567434,0.7025403,90071.0,90070.0,0.00099881]
[1765209567639,0.7005403,90071.0,90070.0,0.00099881]
[1765209567855,0.7025403,90071.0,90070.0,0.00099881]
[1765209568425,0.6847403,90071.0,90070.0,0.00099881]
[1765209568622,0.7025403,90071.0,90070.0,0.00099881]
[1765209571966,0.81101958,90071.0,90070.0,0.00099881]
[1765209572168,0.87354257,90071.0,90070.0,0.00099881]
[1765209572537,0.76506329,90071.0,90070.0,0.00099881]
[1765209573412,0.24426769,90061.0,90060.0,0.0004]
[1765209573584,0.32432769,90061.0,90060.0,0.0004]
[1765209573791,0.38685769,90061.0,90060.0,0.0004]
[1765209574196,0.8173838,90061.0,90060.0,0.0004]
[1765209574399,0.79518781,90061.0,90060.0,0.0004]
[1765209574595,1.7292128,90061.0,90060.0,0.0004]
[1765209574766,1.6269548,90061.0,90060.0,0.0004]
[1765209574960,1.5974318,90061.0,90060.0,0.0004]
[1765209575165,1.5453748,90061.0,90060.0,0.0004]
[1765209575612,1.4758788,90061.0,90060.0,0.0004]
[1765209575844,1.37866709,90061.0,90060.0,0.0004]
[1765209576604,1.37866709,90061.0,90030.0,0.0004]
[1765209576605,0.06252299,90060.0,90030.0,0.0004]
[1765209576765,0.60992235,90051.0,90030.0,0.0004]
[1765209576926,0.73535337,90051.0,90030.0,0.0004]
[1765209577127,0.79788337,90051.0,90030.0,0.0004]
[1765209578068,0.85288857,90051.0,90030.0,0.0004]
[1765209578273,0.85388857,90051.0,90030.0,0.0004]
[1765209579249,0.86519159,90051.0,90030.0,0.0004]
[1765209579641,0.2221457,90031.0,90030.0,0.0004]
[1765209579840,0.3078357,90031.0,90030.0,0.0004]
[1765209580155,0.3703657,90031.0,90030.0,0.00099921]
[1765209580325,0.39256169,90031.0,90030.0,0.00099921]
[1765209580830,0.3703657,90031.0,90030.0,0.00799921]
[1765209581049,0.39256169,90031.0,90030.0,0.00799921]
[1765209582172,0.39256169,90031.0,90030.0,0.00099921]
[1765209582910,0.3703657,90031.0,90030.0,0.00099921]
[1765209583275,0.3703657,90031.0,90030.0,0.00299921]
[1765209583832,0.02526,90031.0,90030.0,0.00299921]
[1765209583959,0.0178,90039.0,90038.0,0.22212843]
[1765209584178,0.22211653,90043.0,90040.0,0.22212331]
[1765209584383,0.22210652,90047.0,90045.0,0.01110555]
[1765209584580,0.01110506,90049.0,90040.0,0.00161287]
[1765209584581,0.22211856,90042.0,90040.0,0.00161287]
[1765209584795,0.06126,90046.0,90031.0,0.23325298]
[1765209584796,0.01110679,90035.0,90031.0,0.23325298]
[1765209584994,0.04208,90031.0,90030.0,0.0024]
[1765209585194,0.04208,90031.0,90030.0,0.0004]
[1765209585612,0.04208,90031.0,90030.0,0.0115074]
[1765209585817,0.04208,90031.0,90030.0,0.23365557]
[1765209586045,0.04208,90031.0,90030.0,0.23465557]
[1765209586322,0.23323465,90039.0,90035.0,0.23324262]
[1765209586521,0.22212586,90040.0,90037.0,0.01110654]
[1765209586762,0.0178,90041.0,90038.0,0.01110642]
[1765209586934,0.01110506,90049.0,90045.0,0.23321435]
[1765209587115,0.04137481,90051.0,90045.0,0.23321592]
[1765209587339,0.01031474,90050.0,90049.0,0.23320636]
[1765209587543,0.01110457,90053.0,90050.0,0.01110494]
[1765209587859,0.01110457,90053.0,90047.0,0.00161287]
[1765209587860,0.22210177,90049.0,90047.0,0.00161287]
[1765209588055,0.08345494,90050.0,90047.0,0.23482417]
[1765209588378,0.08345494,90050.0,90047.0,0.00161287]
[1765209588379,0.04208,90048.0,90047.0,0.00161287]
[1765209588728,0.03027,90050.0,90049.0,0.2221013]
[1765209589278,0.03027,90050.0,90047.0,0.23482441]
[1765209589279,0.07235,90050.0,90048.0,0.2221033]
[1765209589687,0.28637975,90048.0,90047.0,0.00161287]
[1765209589845,0.12553599,90048.0,90047.0,0.00161287]
[1765209590049,0.34763975,90048.0,90047.0,0.00161287]
[1765209590251,0.01110531,90047.0,90043.0,0.23322116]
[1765209590452,0.04208,90046.0,90043.0,0.23322149]
[1765209590748,0.26418889,90046.0,90043.0,0.23322149]
[1765209590971,0.27529432,90046.0,90043.0,0.0111058]
[1765209591172,0.05318543,90046.0,90043.0,0.0111058]
[1765209591377,0.04208,90044.0,90041.0,0.01110605]
[1765209591639,0.04208,90042.0,90041.0,0.22212103]
[1765209591812,0.04208,90042.0,90040.0,0.01110617]
[1765209592026,0.04208,90042.0,90036.0,0.23323974]
[1765209592027,0.22212382,90040.0,90036.0,0.23323974]
[1765209592229,0.01110592,90042.0,90039.0,0.01110629]
[1765209592427,0.01110605,90041.0,90036.0,0.01271953]
[1765209592673,0.22212916,90038.0,90036.0,0.01271953]
[1765209592881,0.01110605,90041.0,90037.0,0.01110654]
[1765209593084,0.01110568,90044.0,90042.0,0.22211773]
[1765209593296,0.23322061,90044.0,90041.0,0.23322478]
[1765209593485,0.22211677,90043.0,90041.0,0.01110605]
[1765209593728,0.2221193,90042.0,90040.0,0.23322478]
[1765209594144,0.26420337,90041.0,90038.0,0.01110642]
[1765209594344,0.05318605,90041.0,90037.0,0.01110654]
[1765209594498,0.01110617,90040.0,90036.0,0.002]
[1765209594744,0.04208,90037.0,90034.0,0.22213745]
[1765209595031,0.04208,90037.0,90036.0,0.22213336]
[1765209595232,0.04208,90037.0,90035.0,0.22213561]
[1765209595446,0.04208,90037.0,90034.0,0.23324483]
[1765209595752,0.23324229,90036.0,90033.0,0.23324327]
[1765209596076,0.02474,90035.0,90034.0,0.013]
[1765209596461,0.24687583,90035.0,90034.0,0.01347934]
[1765209596687,0.28895583,90035.0,90034.0,0.01347934]
[1765209597041,0.28895583,90035.0,90034.0,0.00447934]
[1765209597253,0.28895583,90035.0,90034.0,0.00047934]
[1765209597440,0.06682,90035.0,90034.0,0.00047934]
[1765209597668,0.06682,90035.0,90034.0,0.22261764]
[1765209598024,0.06782,90035.0,90034.0,0.23561764]
[1765209598248,0.28995583,90035.0,90034.0,0.01347934]
[1765209598498,0.37441182,90035.0,90034.0,0.01947934]
[1765209599488,0.35221583,90035.0,90034.0,0.01947934]
[1765209599872,0.37441182,90035.0,90034.0,0.01947934]
[1765209600826,0.37241182,90035.0,90034.0,0.00047934]
[1765209601144,0.38274177,90035.0,90034.0,0.00047934]
[1765209601752,0.68354578,90035.0,90034.0,0.00047934]
[1765209601989,0.79202506,90035.0,90034.0,0.00047934]
[1765209602326,2.85454805,90035.0,90034.0,0.00047934]
[1765209602533,2.85454805,90035.0,90030.0,0.0004]
[1765209602534,0.323,90032.0,90030.0,0.0004]
[1765209602768,0.323,90019.0,90008.0,0.039898]
[1765209603104,0.323,90019.0,89992.0,0.03192]
[1765209603105,0.05941,90009.0,89992.0,0.03192]
[1765209603410,0.04208,90001.0,89991.0,0.02222444]
[1765209603650,0.04208,90001.0,89990.0,0.0004]
[1765209603651,0.28649574,90001.0,89990.0,0.0004]
[1765209603892,0.64855975,90001.0,89990.0,0.0004]
[1765209604140,0.67075574,90001.0,89990.0,0.0004]
[1765209604389,0.67075574,90001.0,89992.0,0.01111209]
[1765209604612,0.67075574,90001.0,90000.0,0.0184]
[1765209604613,0.65888498,90001.0,90000.0,0.0184]
[1765209604844,2.23469796,90001.0,90000.0,0.0024]
[1765209605058,1.73833344,89991.0,89990.0,0.0004]
[1765209605258,0.71473044,89991.0,89990.0,0.0004]
[1765209605375,0.77753044,89991.0,89990.0,0.0004]
[1765209605574,0.79972643,89991.0,89990.0,0.0004]
[1765209605907,0.79972643,89991.0,89970.0,0.0004]
[1765209605908,0.01111444,89973.0,89970.0,0.0004]
[1765209606115,0.02219599,89970.0,89964.0,0.23342561]
[1765209606278,0.02219599,89970.0,89967.0,0.01111518]
[1765209606473,0.02905,89971.0,89966.0,0.01111531]
[1765209606724,0.02905,89979.0,89977.0,0.01111395]
[1765209606927,0.02905,89979.0,89978.0,0.22227608]
[1765209607147,0.10965,89979.0,89978.0,0.22227608]
[1765209607708,0.1626137,89979.0,89973.0,0.01111444]
[1765209607860,0.04185,89972.0,89971.0,0.01111469]
[1765209608241,0.01111493,89969.0,89966.0,0.00161287]
[1765209608454,0.04185,89967.0,89966.0,0.00161287]
[1765209608653,0.03331092,89969.0,89966.0,0.00161287]
[1765209608851,0.08499599,89969.0,89966.0,0.23707251]
[1765209609051,0.04185,89967.0,89966.0,0.00161287]
[1765209609409,0.01111469,89971.0,89966.0,0.00161287]
[1765209609410,0.02905,89981.0,89978.0,0.01111382]
[1765209609722,0.0550052,89989.0,89988.0,0.02154]
[1765209609925,0.0550052,89989.0,89985.0,0.23337205]
[1765209610130,0.12891766,89989.0,89983.0,0.01111321]
[1765209610307,0.02219599,89983.0,89980.0,0.01111358]
[1765209610533,0.29743128,89981.0,89978.0,0.00161287]
[1765209610680,0.01111395,89977.0,89973.0,0.2334018]
[1765209610864,0.05296419,89975.0,89972.0,0.2334038]
[1765209611095,0.01111432,89974.0,89970.0,0.23341018]
[1765209611294,0.01111407,89976.0,89972.0,0.01111456]
[1765209611496,0.0628,89980.0,89978.0,0.22227542]
[1765209611697,0.02219599,89979.0,89977.0,0.23339059]
[1765209611902,0.04185,89978.0,89977.0,0.23339059]
[1765209612306,0.04185,89978.0,89977.0,0.01111395]
[1765209612711,0.02219599,89979.0,89978.0,0.22227655]
[1765209613293,0.34519599,89978.0,89977.0,0.015]
[1765209613536,0.0417,89978.0,89975.0,0.01111419]
[1765209613710,0.33411382,89978.0,89972.0,0.23340356]
[1765209613892,0.323,89978.0,89971.0,0.22229262]
[1765209614092,0.01111493,89969.0,89965.0,0.0127283]
[1765209614375,0.01111469,89971.0,89965.0,0.0127283]
[1765209614376,0.01111481,89970.0,89968.0,0.00197891]
[1765209614568,0.01111481,89970.0,89966.0,0.00632791]
[1765209614724,0.01111493,89969.0,89966.0,0.01111531]
[1765209614941,0.28363693,89970.0,89955.0,0.22233244]
[1765209614942,0.01111592,89961.0,89955.0,0.22233244]
[1765209615144,0.01111605,89960.0,89957.0,0.01111642]
[1765209615341,0.01111345,89981.0,89976.0,0.2222812]
[1765209615580,0.01111345,89981.0,89975.0,0.23339718]
[1765209615581,0.23338822,89979.0,89975.0,0.23339718]
[1765209615807,0.03999599,89980.0,89976.0,0.2222807]
[1765209615808,0.59638162,89980.0,89976.0,0.2222807]
[1765209616077,0.01111283,89986.0,89982.0,0.23337825]
[1765209616277,0.0178,89988.0,89985.0,0.01111296]
[1765209616486,0.0178,89988.0,89986.0,0.22225679]
[1765209616832,0.01111123,89999.0,89992.0,0.01111209]
[1765209617025,0.02219599,89997.0,89994.0,0.01111185]
[1765209617329,0.0417,89995.0,89993.0,0.22223815]
[1765209617737,0.26393552,89995.0,89992.0,0.01111209]
[1765209617935,0.05281197,89993.0,89990.0,0.01111234]
[1765209618136,0.02219599,89987.0,89986.0,0.00861287]
[1765209618382,0.06389599,89987.0,89986.0,0.00861287]
[1765209618586,0.01111197,89993.0,89989.0,0.01111246]
[1765209618782,0.01111197,89993.0,89990.0,0.23335806]
[1765209618987,0.58538892,89998.0,89991.0,0.01111222]
[1765209619162,0.22222962,89997.0,89993.0,0.22423925]
[1765209619361,0.2333411,89997.0,89994.0,0.2222368]
[1765209619555,0.2333411,89997.0,89993.0,0.01311197]
[1765209619556,0.23334416,89996.0,89993.0,0.008]
[1765209619780,0.23334683,89995.0,89991.0,0.01111222]
[1765209619958,0.22223854,89994.0,89991.0,0.01111222]
[1765209620295,0.06389599,89992.0,89990.0,0.001]
[1765209620456,0.02219599,89991.0,89987.0,0.01111271]
[1765209620655,0.22224934,89990.0,89987.0,0.01111271]
[1765209620880,0.0417,89988.0,89987.0,0.01111271]
[1765209621079,0.2639526,89988.0,89984.0,0.01111308]
[1765209621248,0.0417,89987.0,89985.0,0.22225865]
[1765209621451,0.22225679,89986.0,89982.0,0.23337771]
[1765209621823,0.23336962,89986.0,89983.0,0.23337631]
[1765209622094,0.06389599,89983.0,89982.0,0.01111333]
[1765209622300,0.06389599,89983.0,89982.0,0.23338]
[1765209622529,0.01111358,89980.0,89977.0,0.01111395]
[1765209622680,0.0111137,89979.0,89976.0,0.22228149]
[1765209623079,0.02219599,89980.0,89977.0,0.23339297]
[1765209623310,0.02219599,89972.0,89970.0,0.01111481]
[1765209623513,0.02219599,89972.0,89969.0,0.01111493]
[1765209623829,0.02219599,89978.0,89975.0,0.22228396]
[1765209624026,0.02219599,89978.0,89976.0,0.023]
[1765209624259,0.02219599,89978.0,89976.0,0.007]
[1765209624260,0.25378902,89977.0,89976.0,0.007]
[1765209624407,0.001,89979.0,89978.0,0.22227655]
[1765209624593,0.001,89979.0,89976.0,0.24039468]
[1765209624796,0.22227655,89978.0,89976.0,0.007]
[1765209625002,0.22227902,89977.0,89976.0,0.007]
[1765209625203,0.23339297,89977.0,89974.0,0.01111432]
[1765209625402,0.23339297,89977.0,89970.0,0.23340965]
[1765209625403,0.23339591,89976.0,89970.0,0.23340965]
[1765209625639,0.23339591,89976.0,89969.0,0.015]
[1765209625640,0.0417,89971.0,89969.0,0.015]
[1765209625827,0.01111456,89972.0,89969.0,0.004]
[1765209625828,0.06389599,89970.0,89969.0,0.004]
[1765209626031,0.02219599,89968.0,89967.0,0.23341887]
[1765209626445,0.02219599,89967.0,89966.0,0.23342151]
[1765209626624,0.02219599,89971.0,89969.0,0.22229645]
[1765209626808,0.26399632,89970.0,89969.0,0.016]
[1765209627020,0.0417,89970.0,89969.0,0.00194891]
[1765209627388,0.26399632,89970.0,89969.0,0.00194891]
[1765209627542,0.32533632,89970.0,89969.0,0.00194891]
[1765209628635,0.34753231,89970.0,89969.0,0.00194891]
[1765209628945,0.34853231,89970.0,89969.0,0.01794891]
[1765209629600,0.34953231,89970.0,89969.0,0.02494891]
[1765209629959,0.32733632,89970.0,89969.0,0.02494891]
[1765209630413,0.34953231,89970.0,89969.0,0.02494891]
[1765209630563,0.67253231,89970.0,89969.0,0.02494891]
[1765209631358,0.68286524,89970.0,89969.0,0.02494891]
[1765209631850,1.88868853,89970.0,89969.0,0.02494891]
[1765209632054,1.61668152,89970.0,89969.0,0.02494891]
[1765209632234,1.06926052,89970.0,89969.0,0.02494891]
[1765209632581,1.06926052,89970.0,89969.0,0.01794891]
[1765209632582,1.06826052,89970.0,89969.0,0.01794891]
[1765209632786,1.06726052,89970.0,89969.0,0.00194891]
[1765209633005,0.92007124,89970.0,89969.0,0.00394891]
[1765209634929,0.94389418,89970.0,89969.0,0.00394891]
[1765209635132,0.91046418,89970.0,89969.0,0.00394891]
[1765209635491,0.68249219,89970.0,89969.0,0.00394891]
[1765209635734,0.09365587,89970.0,89969.0,0.00394891]
[1765209635918,0.45417293,89970.0,89969.0,0.00394891]
[1765209636124,1.64178561,89970.0,89969.0,0.00394891]
[1765209636321,1.55046361,89970.0,89969.0,0.00394891]
[1765209636525,1.47339261,89970.0,89969.0,0.00394891]
[1765209636726,1.47339261,89970.0,89969.0,0.00194891]
[1765209636905,1.27960561,89970.0,89969.0,0.00194891]
[1765209637159,0.50019186,89970.0,89969.0,0.00694891]
[1765209637378,0.89359718,89970.0,89969.0,0.00694891]
[1765209637754,0.89359718,89970.0,89969.0,0.00794891]
[1765209637997,0.72248818,89970.0,89969.0,0.00794891]
[1765209638200,0.01033293,89970.0,89969.0,0.00694891]
[1765209638339,0.02219599,89972.0,89969.0,0.00194891]
[1765209638542,0.02219599,89972.0,89970.0,0.22229402]
[1765209638794,0.24448736,89972.0,89971.0,0.0018889]
[1765209638998,0.24448736,89972.0,89971.0,0.22418275]
[1765209638999,0.01033293,89972.0,89971.0,0.22418275]
[1765209639138,0.323,89973.0,89971.0,0.0018889]
[1765209639340,0.0178,89974.0,89971.0,0.23502141]
[1765209639561,0.0178,89974.0,89973.0,0.2222889]
[1765209639768,0.0178,89974.0,89973.0,0.22390177]
[1765209640694,0.0178,89974.0,89973.0,0.00161287]
[1765209641485,0.0103321,89982.0,89980.0,0.22227161]
[1765209641696,0.0103321,89982.0,89980.0,0.23499633]
[1765209642065,0.33333303,89991.0,89987.0,0.01111271]
[1765209642229,0.01033303,89990.0,89988.0,0.01111259]
[1765209642432,0.01033303,89990.0,89988.0,0.23336377]
[1765209642642,0.01033303,89990.0,89989.0,0.04052]
[1765209642818,0.01111123,89999.0,89994.0,0.01111185]
[1765209643019,0.01033303,89999.0,89995.0,0.01111172]
[1765209643219,0.02144426,89999.0,89996.0,0.23334241]
[1765209643423,0.01033303,89999.0,89997.0,0.22222962]
[1765209643741,0.24366062,90003.0,89998.0,0.01111135]
[1765209643939,0.33333303,90002.0,89998.0,0.23333687]
[1765209644253,0.01033303,90001.0,89999.0,0.23333473]
[1765209644403,0.02905,90004.0,90001.0,0.23332886]
[1765209644591,0.02905,90004.0,90002.0,0.22221655]
[1765209644795,0.323,90007.0,90005.0,0.22220987]
[1765209644994,0.0103294,90006.0,90005.0,0.22220987]
[1765209645200,0.323,90007.0,90005.0,0.22220987]
[1765209645409,0.0178,90011.0,90009.0,0.22219871]
[1765209645612,0.23328815,90018.0,90011.0,0.22219506]
[1765209645613,0.01032707,90012.0,90011.0,0.22219506]
[1765209645815,0.01032707,90012.0,90009.0,0.23492158]
[1765209645816,0.0111095,90013.0,90009.0,0.00161287]
[1765209646016,0.02667,90011.0,90009.0,0.23492247]
[1765209646491,0.02219599,90016.0,90014.0,0.01110938]
[1765209646690,0.01032639,90017.0,90014.0,0.23329614]
[1765209647000,0.01032639,90017.0,90016.0,0.04052]
[1765209647124,0.04044,90015.0,89973.0,0.06252299]
[1765209647326,0.06264,90016.0,89960.0,0.73669227]
[1765209647327,0.01111568,89963.0,89960.0,0.00099999]
[1765209647526,0.00099999,89960.0,89953.0,0.01111691]
[1765209647770,0.07172,89961.0,89958.0,0.01111629]
[1765209647771,0.03128,89961.0,89958.0,0.01111629]
[1765209647975,0.01111518,89967.0,89958.0,0.00161287]
[1765209648177,0.01111592,89961.0,89958.0,0.00161287]
[1765209648594,0.22232103,89960.0,89958.0,0.00161287]
[1765209648798,0.22232103,89960.0,89958.0,0.01161287]
[1765209649198,0.22232103,89960.0,89958.0,0.00161287]
[1765209649396,0.22232103,89960.0,89958.0,0.01761287]
[1765209649599,0.22232103,89960.0,89958.0,0.02461287]
[1765209650609,0.22232103,89960.0,89958.0,0.00161287]
[1765209650809,0.22234327,89951.0,89950.0,0.02862]
[1765209651186,0.22234327,89951.0,89950.0,0.03113912]
[1765209651667,0.22234327,89951.0,89950.0,0.00251912]
[1765209651874,0.26278327,89951.0,89950.0,0.00251912]
[1765209652144,0.65042327,89951.0,89950.0,0.02651912]
[1765209652335,0.67261926,89951.0,89950.0,0.02651912]
[1765209652483,0.68193241,89951.0,89950.0,0.01851912]
[1765209652685,0.67161926,89951.0,89950.0,0.01851912]
[1765209653083,0.78009854,89951.0,89950.0,0.01851912]
[1765209653286,0.67161926,89951.0,89950.0,0.01851912]
[1765209653618,0.67061926,89951.0,89950.0,0.00251912]
[1765209653820,0.67161926,89951.0,89950.0,0.00951912]
[1765209654026,0.68192873,89951.0,89950.0,0.00951912]